bitfinex-derivatives/quotes_SOLF0:USTF0_20250823
["timestamp","ask_amount","ask_price","bid_price","bid_amount"]
[1755955353102,125.591,202.05,202.02,4.86468341]
[1755955353405,125.591,202.05,202.03,4.86483305]
[1755955353594,125.591,202.05,202.01,2.82]
[1755955353793,125.591,202.05,202.02,4.86483305]
[1755955353994,125.591,202.05,202.03,4.86483305]
[1755955354298,125.591,202.05,202.01,2.82]
[1755955354501,125.591,202.05,202.02,4.86500084]
[1755955354699,125.591,202.05,202.03,4.86500084]
[1755955354902,125.591,202.05,202.01,2.82]
[1755955355102,125.591,202.05,202.02,4.86500084]
[1755955355303,125.591,202.05,202.03,4.86500084]
[1755955355505,125.591,202.05,202.01,2.82]
[1755955355698,125.591,202.05,202.02,4.86529632]
[1755955355899,125.591,202.05,202.03,4.86529632]
[1755955356102,125.591,202.05,202.01,2.82]
[1755955356304,125.591,202.05,202.02,4.86529632]
[1755955356504,120.64,202.06,202.04,2.81]
[1755955356706,120.64,202.06,202.02,2.81]
[1755955356909,120.64,202.06,202.03,4.86545057]
[1755955357102,120.64,202.06,202.02,2.81]
[1755955357103,120.64,202.06,202.04,4.86545057]
[1755955357302,120.64,202.06,202.02,2.81]
[1755955357503,120.64,202.06,202.03,4.86597219]
[1755955357704,120.64,202.06,202.04,4.86597219]
[1755955357904,120.64,202.06,202.02,2.81]
[1755955358105,120.64,202.06,202.03,4.86597219]
[1755955358404,125.5907,202.06,202.04,4.86597219]
[1755955358708,125.5907,202.06,202.02,2.81]
[1755955358901,125.5907,202.06,202.03,4.86654139]
[1755955359105,125.5907,202.06,202.04,4.86654139]
[1755955359305,125.5907,202.06,202.02,2.81]
[1755955359507,125.5907,202.06,202.03,4.86716227]
[1755955359703,125.5907,202.06,202.04,4.86716227]
[1755955359903,125.5907,202.06,202.02,2.81]
[1755955360102,125.5907,202.06,202.03,4.86716227]
[1755955360302,130.72912998,202.06,202.04,4.86716227]
[1755955360502,125.77842998,202.06,201.98,7.7625]
[1755955360706,125.77842998,202.06,201.99,10.69213348]
[1755955360907,125.77842998,202.06,202.0,10.69213348]
[1755955361107,130.72922998,202.06,202.0,1.58677219]
[1755955361307,5.13842998,202.04,202.01,6.45471808]
[1755955361609,5.13842998,202.04,202.02,4.86803802]
[1755955361909,5.13842998,202.04,202.03,4.86869871]
[1755955363606,4.9511,202.04,201.97,2.81]
[1755955363803,119.9254529,202.11,201.99,2.81]
[1755955363804,5.13842998,202.01,201.99,2.81]
[1755955364411,120.76,202.03,201.99,2.81]
[1755955364610,5.13842998,202.03,201.99,2.81]
[1755955364812,120.84,202.02,201.99,2.81]
[1755955366814,120.84,202.02,202.0,1.58864787]
[1755955367014,120.84,202.02,201.99,2.81]
[1755955367214,120.84,202.02,202.0,1.58867834]
[1755955367415,120.84,202.02,201.99,2.81]
[1755955367610,120.84,202.02,202.0,1.58935272]
[1755955367815,120.84,202.02,201.99,2.81]
[1755955368015,120.84,202.02,202.0,1.58935272]
[1755955368215,120.84,202.02,201.99,2.81]
[1755955368417,120.84,202.02,202.0,1.58935313]
[1755955368617,120.84,202.02,201.99,2.81]
[1755955368818,120.84,202.02,202.0,5.82789279]
[1755955369116,120.84,202.02,202.01,1.59005529]
[1755955370015,125.97842998,202.02,202.01,1.59005529]
[1755955370821,125.97842998,202.02,202.01,1.59146442]
[1755955371112,5.13842998,202.02,202.01,1.59146442]
[1755955371420,125.87842998,202.02,202.01,1.59146442]
[1755955373919,120.74,202.02,202.01,1.59146442]
[1755955374120,125.87842998,202.02,202.01,1.59146442]
[1755955374521,125.87842998,202.02,201.96,2.81]
[1755955374723,5.13842998,202.02,201.97,8.64515676]
[1755955374925,120.7,202.01,201.98,5.83515676]
[1755955375123,120.7,202.01,201.99,5.83515676]
[1755955375318,120.7,202.01,202.0,1.59203928]
[1755955375723,120.7,202.01,202.0,6.37885368]
[1755955377122,120.7,202.01,202.0,10.62257238]
[1755955378529,120.66,202.01,202.0,10.62257238]
[1755955379129,120.66,202.01,202.0,10.62181486]
[1755955380119,120.66,202.01,202.0,4.2437187]
[1755955380324,120.66,202.01,202.0,10.62267784]
[1755955381120,120.66,202.01,202.0,10.62264471]
[1755955382031,125.79842998,202.01,202.0,10.62264471]
[1755955382633,125.79842998,202.01,202.0,6.37892601]
[1755955385728,125.79842998,202.01,202.0,10.62280013]
[1755955386032,125.79842998,202.01,202.0,4.78767028]
[1755955388635,4.9522,202.0,201.96,2.68]
[1755955388825,120.66,201.99,201.97,10.59845214]
[1755955389028,120.66,201.99,201.98,10.59845214]
[1755955396435,120.66,201.99,201.98,13.27845214]
[1755955397336,120.66,201.99,201.98,10.59845214]
[1755955397835,120.66,201.99,201.98,4.24327965]
[1755955398031,120.66,201.99,201.98,10.59630668]
[1755955398436,120.66,201.99,201.98,10.59636696]
[1755955399737,10.09012998,202.02,201.98,13.27636696]
[1755955399942,120.66,202.01,201.99,13.27636696]
[1755955400132,120.66,202.01,202.0,13.27636696]
[1755955400338,367.5839,202.13,202.0,13.27636696]
[1755955400643,5.13842998,202.07,202.01,10.59636696]
[1755955400837,120.66,202.06,202.02,10.59636696]
[1755955401032,4.951,202.05,202.03,13.27610873]
[1755955401237,4.951,202.05,202.04,4.76259317]
[1755955401742,4.951,202.05,202.04,6.3527628]
[1755955402145,4.951,202.05,202.04,4.76259317]
[1755955402332,4.951,202.05,202.04,10.6150934]
[1755955402333,125.611,202.05,202.04,10.6150934]
[1755955403138,125.611,202.05,202.04,6.35285648]
[1755955404144,125.611,202.05,202.04,10.6159985]
[1755955406046,125.611,202.05,202.04,6.35285648]
[1755955407145,125.611,202.05,202.04,1.59026331]
[1755955407346,125.611,202.05,202.04,6.3578117]
[1755955407844,125.611,202.05,202.04,6.35766868]
[1755955409145,125.611,202.05,202.04,4.76264647]
[1755955412051,130.74942998,202.05,202.04,4.76264647]
[1755955416453,130.74942998,202.05,202.04,4.75256409]
[1755955418849,130.74942998,202.05,202.01,2.81]
[1755955419051,130.74942998,202.05,202.02,10.6055047]
[1755955419250,130.74942998,202.05,202.03,4.75241136]
[1755955419451,130.74942998,202.05,202.04,4.75241136]
[1755955423657,125.611,202.05,202.04,4.75241136]
[1755955425965,125.611,202.05,201.96,10.09132998]
[1755955426167,125.611,202.05,202.02,2.81]
[1755955426468,125.611,202.05,202.03,7.56212875]
[1755955426666,125.611,202.05,202.04,4.75205412]
[1755955426965,125.611,202.05,202.04,4.75184149]
[1755955427762,4.9505,202.07,202.04,7.56184149]
[1755955427965,4.9505,202.07,202.05,9.15510856]
[1755955428165,4.9505,202.07,202.06,4.75164595]
[1755955428366,125.5705,202.07,202.06,4.75164595]
[1755955429169,125.5705,202.07,202.01,2.81]
[1755955429368,125.5705,202.07,201.99,10.09052998]
[1755955429369,125.5705,202.07,202.02,10.596724]
[1755955429571,125.5705,202.07,202.04,2.81]
[1755955429767,125.5705,202.07,202.05,4.75093317]
[1755955429969,125.5705,202.07,202.04,2.81]
[1755955430162,125.5705,202.07,202.05,4.75068108]
[1755955430368,125.5705,202.07,202.04,2.81]
[1755955430563,125.5705,202.07,202.05,4.75040174]
[1755955430768,125.5705,202.07,202.04,2.81]
[1755955430968,125.5705,202.07,202.05,4.75040174]
[1755955431169,125.5705,202.07,202.04,2.81]
[1755955431372,125.5705,202.07,202.05,4.75043341]
[1755955431568,125.5705,202.07,202.04,2.81]
[1755955431769,125.5705,202.07,202.05,4.75043341]
[1755955431972,125.5705,202.07,202.04,2.81]
[1755955432274,125.5705,202.07,202.05,4.75043341]
[1755955432472,125.5705,202.07,202.01,2.81]
[1755955432669,125.5705,202.07,202.03,2.81]
[1755955432870,125.5705,202.07,202.04,6.34377656]
[1755955433175,120.62,202.06,202.05,4.75058604]
[1755955435573,120.62,202.06,202.05,4.74952546]
[1755955435966,125.5708,202.06,201.99,10.09052998]
[1755955436169,125.5708,202.06,202.0,13.40712912]
[1755955436365,125.5708,202.06,202.01,10.59712912]
[1755955436670,125.5708,202.06,202.02,13.40712912]
[1755955436976,125.5708,202.06,202.03,10.59712912]
[1755955437176,125.5708,202.06,202.04,10.59712912]
[1755955437375,125.5708,202.06,202.05,6.34389453]
[1755955439170,125.5708,202.06,202.05,10.59945458]
[1755955442678,4.9508,202.06,202.05,10.59945458]
[1755955442880,4.9508,202.06,202.05,13.40945458]
[1755955443181,4.9508,202.06,202.05,10.59945458]
[1755955443777,4.9508,202.06,202.05,4.25556005]
[1755955443978,4.9508,202.06,202.05,10.61899576]
[1755955444777,4.9508,202.06,202.05,10.61956467]
[1755955447083,4.9508,202.06,202.05,10.6198875]
[1755955448782,4.9508,202.06,202.05,6.36432745]
[1755955450381,4.9508,202.06,202.05,4.76696501]
[1755955450578,10.08922998,202.06,202.05,4.76696501]
[1755955452390,4.9516,202.02,201.96,2.66]
[1755955452587,125.5316,202.02,201.98,2.66]
[1755955452888,125.5316,202.02,201.99,8.51952323]
[1755955453095,125.5316,202.02,202.0,4.2617649]
[1755955453290,125.5316,202.02,202.01,5.85950339]
[1755955453897,125.5316,202.02,202.01,1.59773849]
[1755955454391,120.58,202.02,202.01,1.59773849]
[1755955454593,120.58,202.02,202.01,8.51450004]
[1755955454989,4.9506,202.07,202.01,8.51450004]
[1755955455198,120.58,202.06,202.03,2.66]
[1755955455895,120.58,202.06,202.04,1.59690916]
[1755955456091,120.58,202.06,201.98,9.30254313]
[1755955456298,120.58,202.06,202.0,2.66]
[1755955456497,120.58,202.06,202.02,2.66]
[1755955456498,125.5307,202.06,202.02,2.66]
[1755955456798,4.9507,202.06,202.03,8.51299819]
[1755955456991,120.58,202.05,202.04,5.85299819]
[1755955461897,4.9502,202.08,202.05,2.66]
[1755955462096,120.58,202.07,202.06,8.51299819]
[1755955462504,120.58,202.07,202.06,6.9160535]
[1755955462802,120.58,202.07,202.06,5.85266765]
[1755955463098,120.58,202.07,202.06,4.2560535]
[1755955463398,120.58,202.07,202.06,5.85270031]
[1755955463802,120.58,202.07,202.06,1.59664681]
[1755955464403,120.58,202.07,202.06,6.26873948]
[1755955465203,120.58,202.07,202.06,4.67209267]
[1755955466207,4.9516,202.02,201.98,2.66]
[1755955466407,125.5316,202.02,201.99,13.18644713]
[1755955466605,125.5316,202.02,202.0,10.52644713]
[1755955466905,125.5316,202.02,202.01,10.52644713]
[1755955468907,120.58,202.02,202.01,10.52644713]
[1755955469609,24.7472,202.11,202.01,13.18644713]
[1755955469907,5.13842998,202.08,202.02,10.52644713]
[1755955470106,120.56,202.07,202.03,10.52644713]
[1755955470303,4.9507,202.06,202.04,6.26996413]
[1755955470498,4.9507,202.06,202.02,2.66]
[1755955470697,4.9507,202.06,202.03,10.52361356]
[1755955470907,4.9507,202.06,202.02,2.66]
[1755955470908,4.9507,202.06,202.04,4.6717241]
[1755955471209,4.9507,202.06,202.02,2.66]
[1755955471397,4.9507,202.06,202.03,6.26860609]
[1755955471605,4.9507,202.06,202.04,4.671996]
[1755955471806,4.9507,202.06,202.02,2.66]
[1755955472109,4.9507,202.06,202.03,6.23359268]
[1755955472409,4.9507,202.06,202.02,2.66]
[1755955472707,4.9507,202.06,202.03,6.23348756]
[1755955472903,4.9507,202.06,202.02,2.66]
[1755955473201,4.951,202.05,202.03,6.23348756]
[1755955473406,4.951,202.05,201.99,2.66]
[1755955473607,10.08942998,202.05,202.0,13.29906705]
[1755955473813,5.13842998,202.02,202.01,10.48906705]
[1755955474007,125.69842998,202.02,202.01,6.23350283]
[1755955476003,125.69842998,202.02,202.01,10.48860893]
[1755955476309,120.56,202.02,202.01,10.48860893]
[1755955481412,120.56,202.02,202.01,10.48643464]
[1755955482015,4.9515,202.03,202.01,10.48643464]
[1755955482214,4.9515,202.03,202.02,6.23132854]
[1755955482408,125.5115,202.03,202.02,6.23132854]
[1755955483311,4.9509,202.05,202.02,6.23132854]
[1755955483515,120.56,202.04,202.03,7.4449301]
[1755955483718,365.65448611,202.14,202.03,13.29453342]
[1755955484015,120.56,202.13,202.04,10.48453342]
[1755955484217,120.56,202.13,202.05,10.48453342]
[1755955484414,120.56,202.13,202.06,6.23080927]
[1755955484617,120.56,202.13,202.03,2.81]
[1755955484920,120.56,202.13,202.04,10.48363617]
[1755955485120,120.56,202.13,202.05,10.48363617]
[1755955485313,128.59088611,202.13,202.06,6.23009934]
[1755955485512,4.9498,202.1,202.03,2.81]
[1755955485818,120.56,202.09,202.04,13.29322777]
[1755955486019,357.6236,202.14,201.99,4.16411315]
[1755955486020,340.91088611,202.14,202.06,2.81]
[1755955486220,4.9496,202.11,202.07,6.22984128]
[1755955486421,120.56,202.13,202.08,4.63425529]
[1755955486620,4.95,202.09,202.03,2.81]
[1755955486816,120.56,202.08,202.04,13.29192943]
[1755955487018,120.56,202.08,202.05,10.48192943]
[1755955487322,120.56,202.08,202.06,4.63363022]
[1755955487522,120.56,202.08,202.05,1.59534299]
[1755955487723,120.56,202.08,202.06,6.22923885]
[1755955488018,4.9504,202.07,202.0,2.81]
[1755955488218,4.9504,202.07,202.01,10.48335178]
[1755955488420,4.951,202.05,202.02,10.48335178]
[1755955488619,120.56,202.04,202.03,10.48335178]
[1755955491026,120.56,202.04,202.03,6.22998345]
[1755955491229,4.9516,202.02,201.97,2.81]
[1755955491429,4.9516,202.02,201.98,4.25420583]
[1755955491628,4.9516,202.02,201.99,4.25420583]
[1755955491829,4.9516,202.02,202.0,4.25420583]
[1755955492030,4.9516,202.02,201.97,2.81]
[1755955492226,4.9516,202.02,201.98,4.254209]
[1755955492434,4.9516,202.02,201.99,4.254209]
[1755955492731,4.9516,202.02,202.0,4.254209]
[1755955492931,125.5112,202.04,201.98,2.81]
[1755955493130,125.5112,202.04,202.0,2.81]
[1755955494527,120.56,202.03,202.01,4.25407225]
[1755955494730,120.56,202.03,202.0,2.81]
[1755955494931,120.56,202.03,202.01,4.25407225]
[1755955495131,120.56,202.03,202.0,2.81]
[1755955495332,120.56,202.03,201.97,4.9527]
[1755955495333,125.5114,202.03,201.97,4.9527]
[1755955495529,125.5114,202.03,201.98,4.25426009]
[1755955495729,125.5114,202.03,201.99,7.06426009]
[1755955495925,125.5114,202.03,202.0,4.25426009]
[1755955496223,125.5114,202.03,201.99,2.81]
[1755955496428,125.5114,202.03,202.0,4.25403875]
[1755955496619,125.5114,202.03,201.99,2.81]
[1755955496826,125.5114,202.03,202.0,4.25403875]
[1755955497121,125.5114,202.03,201.99,2.81]
[1755955497328,125.5114,202.03,202.0,4.25370183]
[1755955497522,125.5114,202.03,201.99,2.81]
[1755955497727,125.5114,202.03,202.0,4.25370183]
[1755955497927,125.5114,202.03,201.99,2.81]
[1755955498131,125.5114,202.03,202.0,4.25370183]
[1755955498432,125.5114,202.03,201.96,2.81]
[1755955498733,125.5114,202.03,201.97,4.25347544]
[1755955498927,125.5114,202.03,201.98,7.06347544]
[1755955499130,125.5114,202.03,201.99,4.25347544]
[1755955499327,125.5114,202.03,201.98,2.81]
[1755955499633,125.5114,202.03,201.99,4.25339304]
[1755955499828,125.5114,202.03,201.95,7.7632]
[1755955500129,125.5114,202.03,201.96,4.25339304]
[1755955500332,4.9517,202.02,201.97,4.25339304]
[1755955500533,4.9517,202.02,201.98,7.06339304]
[1755955500723,120.56,202.03,201.99,4.25339304]
[1755955500928,120.56,202.03,201.95,7.7632]
[1755955501133,120.56,202.03,201.96,4.25325691]
[1755955501331,4.9522,202.0,201.97,4.25325691]
[1755955501533,4.9522,202.0,201.98,4.25325691]
[1755955501835,4.9522,202.0,201.96,2.81]
[1755955502025,4.9522,202.0,201.97,4.25288362]
[1755955502224,4.9522,202.0,201.92,4.16411315]
[1755955502225,4.9522,202.0,201.98,4.25288362]
[1755955502429,4.9522,202.0,201.92,2.81]
[1755955502628,4.9525,201.99,201.93,4.2527121]
[1755955502829,4.9525,201.99,201.94,7.0627121]
[1755955503034,4.9525,201.99,201.95,4.2527121]
[1755955503234,4.9525,201.99,201.96,10.33977731]
[1755955503433,4.9525,201.99,201.97,10.33977731]
[1755955503630,4.9525,201.99,201.98,6.08706521]
[1755955504638,4.952,202.01,201.98,6.08706521]
[1755955504837,4.952,202.01,201.94,2.81]
[1755955505034,4.952,202.01,201.95,10.33778478]
[1755955505332,4.952,202.01,201.96,12.99778478]
[1755955505529,4.952,202.01,201.97,10.33778478]
[1755955505729,4.952,202.01,201.98,6.08617036]
[1755955505927,4.9522,202.0,201.96,2.66]
[1755955506132,4.9522,202.0,201.97,10.33680759]
[1755955506335,4.9522,202.0,201.98,6.08557279]
[1755955506537,4.9522,202.0,201.96,2.66]
[1755955506732,4.9522,202.0,201.97,10.33599393]
[1755955506931,4.9522,202.0,201.98,6.08507682]
[1755955507236,4.9522,202.0,201.97,2.66]
[1755955507438,4.9522,202.0,201.98,6.08537412]
[1755955507638,4.9522,202.0,201.97,2.66]
[1755955507833,4.9522,202.0,201.98,6.08537412]
[1755955508033,4.9522,202.0,201.97,2.66]
[1755955508338,4.9522,202.0,201.98,6.08501044]
[1755955508540,4.9524,201.99,201.95,2.66]
[1755955508740,4.9524,201.99,201.96,12.99692833]
[1755955509038,4.9524,201.99,201.97,10.33692833]
[1755955509242,4.9524,201.99,201.98,6.08560188]
[1755955518452,10.09383146,201.99,201.98,1.55448415]
[1755955518742,10.09383146,201.99,201.98,6.08448565]
[1755955518940,5.14143146,202.01,202.0,2.66]
[1755955520349,5.14143146,202.01,201.97,2.66]
[1755955520545,5.14143146,202.01,201.98,10.36222539]
[1755955520850,5.14143146,202.01,201.99,7.22401593]
[1755955521048,5.14143146,202.01,201.99,2.66]
[1755955523052,10.09333146,202.01,201.99,2.66]
[1755955526841,120.56,202.03,201.98,2.66]
[1755955527046,120.56,202.03,202.0,2.66]
[1755955527248,120.56,202.03,202.01,2.66]
[1755955527649,125.5114,202.03,202.01,2.66]
[1755955528152,125.5114,202.03,201.98,2.66]
[1755955528347,125.5114,202.03,201.99,10.36192648]
[1755955528553,125.5114,202.03,202.0,13.02192648]
[1755955528852,125.5114,202.03,202.0,2.66]
[1755955529155,125.5114,202.03,202.01,6.11850812]
[1755955529355,125.5114,202.03,202.0,2.66]
[1755955529555,125.5114,202.03,202.01,6.11940841]
[1755955529856,125.5114,202.03,202.0,2.66]
[1755955530050,125.5114,202.03,202.01,8.77940841]
[1755955530250,125.5114,202.03,202.02,4.65401174]
[1755955531255,125.5114,202.03,201.98,2.66]
[1755955531454,125.5114,202.03,201.99,13.03176131]
[1755955531656,125.5114,202.03,202.0,10.37176131]
[1755955531845,125.5114,202.03,202.01,10.37176131]
[1755955532050,125.5114,202.03,201.99,2.66]
[1755955532250,125.5114,202.03,202.0,10.34974728]
[1755955532450,125.5114,202.03,202.01,10.34974728]
[1755955532652,125.5114,202.03,201.99,2.66]
[1755955532853,125.5114,202.03,202.0,10.35099396]
[1755955533055,125.5114,202.03,202.01,10.35099396]
[1755955533252,125.5114,202.03,201.98,2.66]
[1755955533253,125.5114,202.03,202.02,4.63514779]
[1755955535557,125.5114,202.03,202.02,10.4429665]
[1755955537358,125.5114,202.03,201.99,2.61]
[1755955537563,125.5114,202.03,202.0,10.44396314]
[1755955537755,125.5114,202.03,202.01,10.44396314]
[1755955538061,357.6252,202.13,202.02,6.19307852]
[1755955538262,5.14143146,202.09,202.03,13.05341022]
[1755955538451,5.14143146,202.11,202.04,6.19282229]
[1755955538657,120.52,202.1,202.06,2.61]
[1755955538958,125.4697,202.1,202.07,8.80167263]
[1755955539266,125.4697,202.1,202.07,2.61]
[1755955540258,125.4697,202.1,202.04,2.61]
[1755955540465,125.4697,202.1,202.05,10.47724848]
[1755955540654,125.4697,202.1,202.06,6.23120088]
[1755955540964,125.4697,202.1,202.04,7.561]
[1755955541157,125.4697,202.1,202.05,10.47724848]
[1755955541456,125.4697,202.1,201.99,24.7613]
[1755955541457,120.52,202.1,201.99,2.61]
[1755955541656,120.52,202.1,202.01,2.61]
[1755955541853,120.52,202.1,202.02,10.47550629]
[1755955542050,120.52,202.1,202.03,10.47545484]
[1755955542260,120.52,202.1,202.04,6.22999039]
[1755955542460,4.9505,202.07,202.01,7.5616]
[1755955542657,120.52,202.06,202.02,10.47405634]
[1755955542964,120.52,202.06,202.04,2.61]
[1755955543158,120.52,202.06,202.05,8.83911201]
[1755955543365,8.02383897,202.12,202.05,10.47361075]
[1755955543561,120.52,202.11,202.06,4.62989467]
[1755955543763,120.52,202.11,202.04,2.61]
[1755955543958,4.95,202.09,202.05,10.47038321]
[1755955544158,120.52,202.08,202.06,6.22696628]
[1755955544357,120.52,202.08,202.02,4.9515]
[1755955544563,120.52,202.08,202.03,10.46499257]
[1755955544759,120.52,202.08,202.04,10.46499257]
[1755955544961,120.52,202.08,202.02,4.9515]
[1755955544962,120.52,202.08,202.05,10.46499257]
[1755955545163,120.52,202.08,202.06,6.22526941]
[1755955545463,120.52,202.08,202.02,4.9515]
[1755955545766,125.4702,202.08,202.04,2.61]
[1755955545969,125.4702,202.08,202.05,4.62618267]
[1755955546266,125.4702,202.08,202.04,2.61]
[1755955546461,125.4702,202.08,202.05,4.62539986]
[1755955546662,125.4702,202.08,202.04,2.61]
[1755955546966,125.4702,202.08,202.05,4.62539986]
[1755955547169,125.4702,202.08,202.04,2.61]
[1755955547666,125.4702,202.08,202.02,4.9515]
[1755955547863,125.4702,202.08,202.03,13.06919894]
[1755955548068,125.4702,202.08,202.04,10.45918318]
[1755955548368,125.4702,202.08,202.03,2.61]
[1755955548566,125.4702,202.08,202.04,6.22104453]
[1755955548766,125.4702,202.08,202.03,2.61]
[1755955548959,125.4702,202.08,202.04,6.22104453]
[1755955549161,125.4702,202.08,202.03,2.61]
[1755955549458,125.4702,202.08,202.04,6.22032771]
[1755955549657,125.4702,202.08,202.04,2.61]
[1755955550769,120.52,202.08,202.05,2.61]
[1755955550966,120.52,202.08,202.04,4.951]
[1755955551165,120.52,202.08,202.04,7.561]
[1755955551470,120.52,202.08,202.04,4.951]
[1755955551767,120.52,202.08,202.02,2.61]
[1755955552067,120.52,202.08,202.03,6.21910621]
[1755955552266,120.52,202.08,202.02,2.61]
[1755955552463,125.4702,202.08,202.03,6.21908987]
[1755955552762,125.4702,202.08,202.02,2.61]
[1755955552961,125.4702,202.08,202.03,6.21908909]
[1755955553268,125.4702,202.08,202.02,2.61]
[1755955553463,125.4702,202.08,202.03,6.21904604]
[1755955553668,125.4702,202.08,202.02,2.61]
[1755955553867,125.4702,202.08,202.03,6.21904604]
[1755955554069,125.4702,202.08,202.02,7.5614]
[1755955554370,125.4702,202.08,202.03,8.82907993]
[1755955554570,125.4702,202.08,202.03,2.61]
[1755955556970,125.4702,202.08,202.02,4.9514]
[1755955557170,125.4702,202.08,202.03,6.2193804]
[1755955557371,125.4702,202.08,202.02,4.9514]
[1755955557573,125.4702,202.08,202.03,6.21964921]
[1755955557773,125.4702,202.08,202.02,4.9514]
[1755955557969,125.4702,202.08,202.03,6.21964921]
[1755955558168,125.4702,202.08,202.03,2.61]
[1755955561877,125.4702,202.08,202.04,4.62425984]
[1755955562077,125.4702,202.08,202.03,7.5612]
[1755955562272,120.52,202.08,202.04,8.86313859]
[1755955562472,120.52,202.08,202.05,6.25313859]
[1755955562680,125.61639046,202.13,202.07,2.61]
[1755955562881,5.13639046,202.15,202.08,13.09937639]
[1755955563082,120.48,202.14,202.09,8.86259898]
[1755955563381,120.48,202.14,202.09,2.61]
[1755955563583,120.48,202.14,202.09,7.5598]
[1755955564685,120.48,202.14,202.09,2.61]
[1755955565778,120.48,202.14,202.07,4.9502]
[1755955565978,120.48,202.14,202.08,10.48188591]
[1755955566276,120.48,202.14,202.11,2.84]
[1755955566772,120.46,202.16,202.11,2.84]
[1755955567178,125.4083,202.16,202.11,2.84]
[1755955567582,120.46,202.16,202.04,2.84]
[1755955567789,4.9491,202.13,202.05,15.42687696]
[1755955568092,120.46,202.12,202.06,6.24421949]
[1755955568289,125.4095,202.11,202.04,7.7909]
[1755955568484,125.4095,202.11,202.05,10.47823972]
[1755955568689,125.4095,202.11,202.06,6.24558339]
[1755955568889,125.4095,202.11,202.04,7.7909]
[1755955569089,125.4095,202.11,202.05,10.47823972]
[1755955569390,125.4095,202.11,202.04,7.7909]
[1755955569596,125.4095,202.11,202.05,10.47914994]
[1755955569783,125.4095,202.11,202.04,7.7909]
[1755955569985,125.4095,202.11,202.05,10.47914994]
[1755955570192,120.46,202.11,202.04,2.84]
[1755955570391,120.46,202.11,202.02,4.9515]
[1755955570592,120.46,202.11,202.03,10.48114689]
[1755955570791,120.46,202.11,202.04,8.88528951]
[1755955570993,120.46,202.11,202.02,4.9515]
[1755955571187,120.46,202.11,202.03,10.48114564]
[1755955571389,120.46,202.11,202.04,10.48114564]
[1755955571589,4.9503,202.08,202.02,4.9515]
[1755955571793,4.9503,202.08,202.03,13.32283612]
[1755955571994,4.9503,202.08,202.04,8.88672486]
[1755955572195,4.9503,202.08,202.03,2.84]
[1755955572395,4.9503,202.08,202.04,8.88784097]
[1755955572595,4.9503,202.08,202.03,2.84]
[1755955572895,4.9503,202.08,202.04,8.88784181]
[1755955573088,4.9503,202.08,202.03,2.84]
[1755955573396,4.9503,202.08,202.04,8.88808278]
[1755955573694,4.9498,202.1,202.04,2.84]
[1755955573898,8.02110265,202.16,202.04,2.84]
[1755955574095,120.44,202.15,202.05,8.88829018]
[1755955574293,8.02110265,202.12,201.97,2.84]
[1755955574494,8.02110265,202.08,201.98,10.48707659]
[1755955574698,8.02110265,202.08,201.99,10.48707659]
[1755955574994,8.02110265,202.08,202.0,10.48720523]
[1755955575293,8.02110265,202.08,201.97,2.84]
[1755955575493,120.5,202.1,201.99,2.84]
[1755955575494,128.52110265,202.1,201.99,2.84]
[1755955575687,128.52110265,202.1,202.0,10.4885252]
[1755955575885,128.52110265,202.1,202.01,4.65492328]
[1755955576088,128.52110265,202.1,201.99,2.84]
[1755955576294,128.52110265,202.1,202.0,10.48843192]
[1755955576593,4.9507,202.06,202.01,8.89132012]
[1755955576785,4.9507,202.06,201.99,7.7922]
[1755955576989,4.9507,202.06,202.0,10.48946466]